fUST/lending_fUST_20260204
["ID","MTS","AMOUNT","RATE_DAILY","PERIOD"]
[404481514,1770194312112,-500.0,0.00015037,2]
[404481515,1770194313712,-347.57277833,0.00015037,2]
[404481516,1770194317663,-500.0,0.00015037,2]
[404481517,1770194319119,-569.2640942,0.00015037,2]
[404481521,1770194583322,200.0,0.00013699,2]
[404481522,1770194583395,500.42253466,0.00013273,2]
[404481523,1770194583426,500.35372988,0.00013699,2]
[404481524,1770194583680,501.22980046,0.00013273,2]
[404481525,1770194583840,172.0,0.000301,120]
[404481528,1770194673616,3127.03659371,0.000145,2]
[404481529,1770194705460,511.58280078,0.00013273,2]
[404481530,1770194734112,-2066.84196294,0.00014664,2]
[404481531,1770194804895,3214.0948255,0.00014077,2]
[404481532,1770194839133,-2933.15803706,0.00014664,2]
[404481533,1770194839157,-150.0,0.00014812,2]
[404481534,1770194839177,-175.0,0.0001486,2]
[404481535,1770194839201,-300.0,0.0001486,2]
[404481536,1770194839222,-12217.62562078,0.00014861,2]
[404481537,1770194839247,-520.78439888,0.0001493,2]
[404481538,1770194839270,-500.0,0.0001493,2]
[404481539,1770194839288,-500.0,0.0001493,2]
[404481540,1770194839308,-431.10858888,0.0001493,2]
[404481541,1770194839331,-500.0,0.0001493,2]
[404481542,1770194839352,-500.0,0.0001493,2]
[404481543,1770194839373,-500.0,0.0001493,2]
[404481544,1770194839397,-500.0,0.0001493,2]
[404481545,1770194839419,-500.0,0.0001493,2]
[404481546,1770194839440,-500.0,0.0001493,2]
[404481547,1770194839460,-175.26719919,0.0001493,2]
[404481548,1770194839481,-500.0,0.0001493,2]
[404481549,1770194839505,-500.0,0.0001493,2]
[404481550,1770194839525,-500.0,0.0001493,2]
[404481551,1770194839547,-500.0,0.0001493,2]
[404481552,1770194839570,-500.0,0.0001493,2]
[404481553,1770194839590,-500.0,0.0001493,2]
[404481554,1770194839745,-500.0,0.0001493,2]
[404481555,1770194839769,-500.0,0.0001493,2]
[404481556,1770194839790,-500.0,0.0001493,2]
[404481557,1770194839810,-199.97968115,0.0001493,2]
[404481558,1770194839832,-209.07898128,0.0001493,2]
[404481559,1770194839854,-500.0,0.0001493,2]
[404481560,1770194839874,-500.0,0.0001493,2]
[404481561,1770194839896,-337.3249509,0.0001493,2]
[404481562,1770194839917,-500.0,0.0001493,2]
[404481563,1770194839938,-500.0,0.0001493,2]
[404481564,1770194839958,-500.0,0.0001493,2]
[404481565,1770194839978,-500.0,0.0001493,2]
[404481566,1770194839999,-500.0,0.0001493,2]
[404481567,1770194840021,-500.0,0.0001493,2]
[404481568,1770194840041,-500.0,0.0001493,2]
[404481569,1770194840063,-500.0,0.0001493,2]
[404481570,1770194840084,-500.0,0.0001493,2]
[404481571,1770194840106,-590.24010956,0.0001493,2]
[404481572,1770194840127,-500.0,0.0001493,2]
[404481573,1770194840148,-499.99999999,0.0001493,2]
[404481574,1770194840167,-500.0,0.00014931,2]
[404481575,1770194840186,-3282.99779771,0.00014932,2]
[404481576,1770194840210,-1272.7724324,0.00015136,2]
[404481577,1770194840232,-420.0,0.00016266,2]
[404481578,1770194840253,-169.348,0.00016272,2]
[404481579,1770194840275,-454.29319697,0.00016337,2]
[404481580,1770194840296,-500.0,0.00016438,2]
[404481581,1770194840316,-500.0,0.00016438,2]
[404481582,1770194840336,-500.0,0.00016438,2]
[404481583,1770194840356,-500.0,0.00016438,2]
[404481584,1770194840376,-500.0,0.00016438,2]
[404481585,1770194840397,-500.0,0.00016438,2]
[404481586,1770194840418,-500.0,0.00016438,2]
[404481587,1770194840438,-500.0,0.00016438,2]
[404481588,1770194840458,-500.0,0.00016438,2]
[404481589,1770194840478,-500.0,0.00016438,2]
[404481590,1770194840498,-500.0,0.00016438,2]
[404481591,1770194840518,-500.0,0.00016438,2]
[404481592,1770194840538,-500.0,0.00016438,2]
[404481593,1770194840559,-500.0,0.00016438,2]
[404481594,1770194840578,-500.0,0.00016438,2]
[404481595,1770194840598,-227.32470253,0.00016438,2]
[404481596,1770194842128,-272.67529747,0.00016438,2]
[404481597,1770194842148,-469.59423212,0.00016438,2]
[404481599,1770194957211,-5000.0,0.00016274,2]
[404481600,1770194957236,-150.0,0.00016356,2]
[404481601,1770194957258,-300.0,0.00016438,2]
[404481602,1770194957279,-150.0,0.00016438,2]
[404481603,1770194957302,-12049.22969033,0.00016439,2]
[404481604,1770194957326,-708.385334,0.00016506,2]
[404481605,1770194957353,-170.6512397,0.00016555,2]
[404481606,1770194957373,-295.74048701,0.00016986,2]
[404481607,1770194957395,-500.0,0.00016989,2]
[404481608,1770194957418,-500.0,0.00016989,2]
[404481609,1770194957438,-355.55329791,0.00016989,2]
[404481610,1770194957458,-467.67544236,0.00016989,2]
[404481611,1770194957479,-607.30135636,0.00016989,2]
[404481612,1770194957500,-232.24890106,0.00016989,2]
[404481613,1770194957520,-204.14721677,0.00016989,2]
[404481614,1770194957540,-100000.0,0.0001699,2]
[404481615,1770194957559,-153.8918463,0.000173,2]
[404481616,1770194957580,-151.0,0.000174,2]
[404481617,1770194957599,-153.8918463,0.0001742,2]
[404481618,1770194957622,-151.0,0.000175,2]
[404481619,1770194957641,-153.8918463,0.00017539,2]
[404481620,1770194957661,-151.0,0.000176,2]
[404481621,1770194957680,-299267.24695963,0.00017642,2]
[404481622,1770194961097,-1821.41131334,0.00017642,2]
[404481655,1770195032436,-376.35483316,0.00017466,2]
[404481657,1770195032447,-4623.64516684,0.00017466,2]
[404481659,1770195032456,-153.8918463,0.0001762,2]
[404481661,1770195032466,-300.0,0.00017641,2]
[404481663,1770195032475,-5480.21566531,0.00017642,2]
[404481665,1770195032486,-7514.63037393,0.00017642,2]
[404481715,1770195038361,-100128.48475351,0.00017642,2]
[404481717,1770195038373,-15132.31663726,0.00017642,2]
[404481724,1770195038427,-82.47439218,0.00017642,2]
[404481979,1770195040856,-3e-08,0.00017373,2]
[404482580,1770195046672,-229.64910699,0.00017373,2]
[404482639,1770195047249,-5229.5892997,0.00017373,2]
[404483007,1770195078362,257.80439471,0.00013699,2]
[404483010,1770195664374,500.0,0.00013273,2]
[404483011,1770195664410,500.0,0.00013821,2]
[404483012,1770195665084,511.58280078,0.00013273,2]
[404483013,1770195697916,151.0,0.0003986,120]
[404483014,1770195698207,151.0,0.0003986,120]
[404483015,1770195698516,274.394976,0.0003986,120]
[404483016,1770195906474,-458.0,0.00018,14]
[404483017,1770195971720,225.0272509,0.0003986,120]
[404483018,1770195991142,-150.0,0.00015493,2]
[404483019,1770195991163,-104.15133636,0.00015674,2]
[404483020,1770196039089,-5000.0,0.00015517,2]
[404483021,1770196039110,-300.0,0.00015674,2]
[404483022,1770196039129,-300.0,0.00015675,2]
[404483023,1770196039148,-251.70640806,0.00015675,2]
[404483024,1770196152079,-1923.15766073,0.00015363,2]
[404483025,1770196155321,-700.0,0.00015363,2]
[404483026,1770196163087,-145.18150908,0.00015363,2]
[404483027,1770196163108,-150.0,0.0001544,2]
[404483028,1770196163129,-5000.0,0.00015518,2]
[404483029,1770196163149,-300.0,0.00015674,2]
[404483030,1770196163168,-48.29359194,0.00015675,2]
[404483031,1770196163188,-272.0,0.00015675,2]
[404483032,1770196163207,-1200.0,0.00015675,2]
[404483033,1770196163227,-14458.62833969,0.00015675,2]
[404483034,1770196163252,-5157.58813538,0.00015675,2]
[404483035,1770196163272,-500.0,0.00015676,2]
[404483036,1770196163292,-500.0,0.00015676,2]
[404483037,1770196163312,-500.0,0.00015676,2]
[404483038,1770196163333,-500.0,0.00015676,2]
[404483039,1770196163353,-500.0,0.00015676,2]
[404483040,1770196163373,-500.0,0.00015676,2]
[404483041,1770196163394,-500.0,0.00015676,2]
[404483042,1770196163414,-280.47306974,0.00015676,2]
[404483043,1770196163435,-500.0,0.00015676,2]
[404483044,1770196163454,-500.0,0.00015676,2]
[404483045,1770196163478,-500.0,0.00015676,2]
[404483046,1770196163498,-254.58700135,0.00015676,2]
[404483047,1770196163517,-465.91432287,0.00015676,2]
[404483048,1770196163537,-186.86588526,0.00015676,2]
[404483049,1770196163562,-541.02258978,0.00015677,2]
[404483050,1770196163583,-5325.9527164,0.00015742,2]
[404483051,1770196163602,-493.7958009,0.00015844,2]
[404483052,1770196163620,-225.37,0.000161,2]
[404483053,1770196163640,-226.12650187,0.00016437,2]
[404483054,1770196163660,-160.3,0.00016438,2]
[404483055,1770196163682,-500.0,0.00016438,2]
[404483056,1770196163703,-500.0,0.00016438,2]
[404483057,1770196163725,-500.0,0.00016438,2]
[404483058,1770196163746,-500.0,0.00016438,2]
[404483059,1770196163767,-500.0,0.00016438,2]
[404483060,1770196163787,-228.35875724,0.00016438,2]
[404483061,1770196163807,-500.0,0.00016438,2]
[404483062,1770196163828,-487.1329653,0.00016525,2]
[404483063,1770196163848,-55464.27917391,0.0001699,2]
[404483064,1770196204064,151.0,0.00013699,2]
[404483125,1770196238578,-4408.21763043,0.00015209,2]
[404483126,1770196238591,-158.28855131,0.00016418,2]
[404483127,1770196238611,-194.95411126,0.00016418,2]
[404483128,1770196238622,-218.43492476,0.00016418,2]
[404483129,1770196238631,-187.42954281,0.00016418,2]
[404483130,1770196238641,-3260.14815099,0.00016419,2]
[404483131,1770196238652,-2640.17980717,0.00016419,2]
[404483132,1770196239195,427.994,0.00028475,120]
[404483210,1770196246630,734.166,0.00028475,120]
[404483211,1770196246748,-2740.34289481,0.00016419,2]
[404483212,1770196246759,-799.65154018,0.00016419,2]
[404483216,1770196330175,5000.0,0.0003986,20]
[404483217,1770196347754,4910.0,0.0003986,20]
[404483218,1770196367693,5000.0,0.0003986,20]
[404483219,1770196375832,5000.0,0.0003986,30]
[404483220,1770196393936,5000.0,0.0003986,30]
[404483221,1770196404432,5000.0,0.0003986,30]
[404483222,1770196411846,5000.0,0.0003986,45]
[404483223,1770196504242,500.0,0.00013273,2]
[404483224,1770196504375,500.0,0.00013273,2]
[404483226,1770196623621,184.4404301,0.00013273,2]
[404483227,1770196623651,511.58280078,0.00013273,2]
[404483228,1770196623747,500.0,0.00013273,2]
[404483229,1770196623804,401.01831441,0.00013821,2]
[404483230,1770196785571,-1000.0,0.00014857,2]
[404483231,1770196930810,-765.70509407,0.00014867,2]
[404483232,1770196932919,-1000.0,0.00014867,2]
[404483233,1770196937144,-662.89729949,0.00014867,2]
[404483234,1770196938766,-903.06555515,0.00014867,2]
[404483235,1770196941376,-1108.01250665,0.00014867,2]
[404483236,1770196948712,10966.59324802,0.00013,2]
[404483237,1770196948735,25000.0,0.00013,2]
[404483238,1770196948759,64362.17385198,0.00013,2]
[404483239,1770197099006,124582.9628,0.00039854,20]
[404483241,1770197192279,-150.0,0.00014942,2]
[404483242,1770197192299,-113.21211411,0.00015068,2]
[404483243,1770197267225,10000.0,0.00039854,20]
[404483245,1770197351120,-107.96322589,0.00015068,2]
[404483246,1770197351141,-170.499589,0.00015179,2]
[404483247,1770197351159,-500.0,0.00015676,2]
[404483248,1770197351180,-170.499589,0.0001571,2]
[404483249,1770197351200,-300.0,0.00015747,2]
[404483250,1770197351219,-556.05640422,0.00015748,2]
[404483251,1770197351237,-807.30794303,0.00015748,2]
[404483252,1770197351256,-191.0,0.00015748,2]
[404483253,1770197351274,-1200.0,0.00015748,2]
[404483254,1770197351293,-500.0,0.00015748,2]
[404483255,1770197351313,-500.0,0.00015748,2]
[404483256,1770197351333,-500.0,0.00015748,2]
[404483257,1770197351352,-500.0,0.00015748,2]
[404483258,1770197351372,-175.26719919,0.00015748,2]
[404483259,1770197351392,-520.78439888,0.00015748,2]
[404483260,1770197351412,-500.0,0.00015748,2]
[404483261,1770197351432,-250.0,0.00015748,2]
[404483262,1770197351451,-500.0,0.00015748,2]
[404483263,1770197351473,-500.0,0.00015748,2]
[404483264,1770197351493,-500.0,0.00015748,2]
[404483265,1770197351515,-500.0,0.00015748,2]
[404483266,1770197351535,-500.0,0.00015748,2]
[404483267,1770197351556,-300.0,0.00015748,2]
[404483268,1770197351576,-500.0,0.00015748,2]
[404483269,1770197351596,-500.0,0.00015748,2]
[404483270,1770197351616,-500.0,0.00015748,2]
[404483271,1770197351636,-431.10858888,0.00015748,2]
[404483272,1770197351656,-500.0,0.00015748,2]
[404483273,1770197351675,-500.0,0.00015748,2]
[404483274,1770197351695,-500.0,0.00015748,2]
[404483275,1770197351715,-500.0,0.00015748,2]
[404483276,1770197351736,-500.0,0.00015748,2]
[404483277,1770197351756,-500.0,0.00015748,2]
[404483278,1770197351776,-500.0,0.00015748,2]
[404483279,1770197351797,-500.0,0.00015748,2]
[404483280,1770197351940,-500.0,0.00015748,2]
[404483281,1770197351963,-500.0,0.00015748,2]
[404483282,1770197351984,-500.0,0.00015748,2]
[404483283,1770197352007,-500.0,0.00015748,2]
[404483284,1770197352029,-500.0,0.00015748,2]
[404483285,1770197352048,-500.0,0.00015748,2]
[404483286,1770197352070,-500.0,0.00015748,2]
[404483287,1770197352093,-500.0,0.00015748,2]
[404483288,1770197352113,-300.0,0.00015748,2]
[404483289,1770197352133,-500.0,0.00015748,2]
[404483290,1770197352156,-438.86317585,0.00015748,2]
[404483291,1770197352176,-500.0,0.00015748,2]
[404483292,1770197352197,-500.0,0.00015748,2]
[404483293,1770197352217,-500.0,0.00015748,2]
[404483294,1770197352239,-500.0,0.00015748,2]
[404483295,1770197352258,-325.96667926,0.00015748,2]
[404483296,1770197352278,-500.0,0.00015748,2]
[404483297,1770197352298,-500.0,0.00015748,2]
[404483298,1770197352317,-500.0,0.00015748,2]
[404483299,1770197352337,-500.0,0.00015748,2]
[404483300,1770197352357,-209.1853305,0.00015748,2]
[404483301,1770197352376,-500.0,0.00015748,2]
[404483302,1770197352396,-500.0,0.00015748,2]
[404483303,1770197352416,-451.66936102,0.00015748,2]
[404483304,1770197352437,-545.50151776,0.00015748,2]
[404483305,1770197352456,-500.0,0.00015748,2]
[404483306,1770197352477,-399.09481167,0.00015748,2]
[404483307,1770197352496,-500.0,0.00015748,2]
[404483308,1770197352516,-5357.83942419,0.00015749,2]
[404483309,1770197352577,-4698.52046461,0.00015749,2]
[404483310,1770197352597,-6853.24644397,0.00015749,2]
[404483311,1770197355098,-6101.10700262,0.00015749,2]
[404483312,1770197406214,1000.0,0.0003985,20]
[404483313,1770197410486,241.54467644,0.00013699,2]
[404483314,1770197410921,300.0,0.00013673,2]
[404483315,1770197410956,379.14062448,0.00013699,2]
[404483316,1770197410980,120.85937552,0.00013699,2]
[404483317,1770197417726,1000.0,0.0003985,20]
[404483318,1770197425248,-204.1551729,0.00014221,2]
[404483319,1770197425276,-228.6385523,0.00014247,2]
[404483320,1770197428213,1000.0,0.0003985,20]
[404483338,1770197431662,-271.3614477,0.00014247,2]
[404483339,1770197431674,-300.0,0.00015747,2]
[404483340,1770197431684,-424.0,0.00015747,2]
[404483341,1770197431695,-300.0,0.00015747,2]
[404483343,1770197431706,-150.0,0.00015748,2]
[404483345,1770197431717,-500.0,0.00015748,2]
[404483347,1770197431728,-195.55054953,0.00015748,2]
[404483349,1770197431739,-500.0,0.00015748,2]
[404483351,1770197431749,-484.84861749,0.00015748,2]
[404483353,1770197431760,-500.0,0.00015748,2]
[404483354,1770197431771,-600.0,0.00015748,2]
[404483356,1770197431782,-500.0,0.00015748,2]
[404483358,1770197431793,-500.0,0.00015748,2]
[404483359,1770197431806,-500.0,0.00015748,2]
[404483360,1770197431816,-500.0,0.00015748,2]
[404483361,1770197431827,-500.0,0.00015748,2]
[404483362,1770197431839,-500.0,0.00015748,2]
[404483363,1770197431850,-500.0,0.00015748,2]
[404483364,1770197431860,-500.0,0.00015748,2]
[404483365,1770197431871,-500.0,0.00015748,2]
[404483366,1770197431882,-256.50242492,0.00015748,2]
[404483367,1770197431893,-242.00394715,0.00015748,2]
[404483368,1770197431904,-400.64411321,0.00015748,2]
[404483369,1770197434870,1000.0,0.0003985,20]
[404483383,1770197440086,-3e-08,0.00015748,2]
[404483406,1770197444011,-99.35588676,0.00015748,2]
[404483407,1770197444020,-500.0,0.00015748,2]
[404483408,1770197444029,-500.0,0.00015748,2]
[404483409,1770197444039,-500.0,0.00015748,2]
[404483410,1770197444049,-500.0,0.00015748,2]
[404483411,1770197444058,-500.0,0.00015748,2]
[404483412,1770197444067,-500.0,0.00015748,2]
[404483413,1770197444077,-500.0,0.00015748,2]
[404483414,1770197444086,-500.0,0.00015748,2]
[404483415,1770197444096,-500.0,0.00015748,2]
[404483416,1770197444105,-500.0,0.00015748,2]
[404483417,1770197444115,-204.19558099,0.00015748,2]
[404483418,1770197444124,-500.0,0.00015748,2]
[404483419,1770197444133,-500.0,0.00015748,2]
[404483420,1770197444142,-500.0,0.00015748,2]
[404483421,1770197444151,-500.0,0.00015748,2]
[404483422,1770197444161,-500.0,0.00015748,2]
[404483423,1770197444170,-500.0,0.00015748,2]
[404483424,1770197444179,-500.0,0.00015748,2]
[404483425,1770197444189,-500.0,0.00015748,2]
[404483426,1770197444198,-713.48953219,0.00015749,2]
[404483428,1770197444864,-1523.06,0.00015749,2]
[404483543,1770197446975,1000.0,0.0003985,20]
[404483544,1770197462592,-2727.90014426,0.00015749,2]
[404483545,1770197462837,1000.0,0.0003985,20]
[404483546,1770197465550,500.0,0.00013273,2]
[404483547,1770197465630,500.0,0.00013821,2]
[404483548,1770197468351,500.0,0.00013699,2]
[404483549,1770197469377,500.0,0.00013699,2]
[404483550,1770197469909,500.0,0.00013699,2]
[404483551,1770197474349,533.98562699,0.00013699,2]
[404483552,1770197476894,500.0,0.00013699,2]
[404483553,1770197477079,1034.52967472,0.00013821,2]
[404483554,1770197477119,500.0,0.00013273,2]
[404483555,1770197481232,501.59021589,0.00013699,2]
[404483556,1770197503840,5000.0,0.00014,2]
[404483557,1770197505903,237699.42787264,0.0003985,20]
[404483558,1770197520892,731.0,0.0003985,20]
[404483559,1770197525976,5000.0,0.00014,2]
[404483560,1770197549472,5000.0,0.00014,2]
[404483561,1770197572089,5000.0,0.00014,2]
[404483562,1770197583338,500.0,0.00013273,2]
[404483563,1770197583387,500.0,0.00013273,2]
[404483564,1770197583423,376.75179994,0.00013821,2]
[404483565,1770197583453,225.3660868,0.00013273,2]
[404483566,1770197583535,500.64722121,0.00013821,2]
[404483567,1770197583711,500.0,0.00013273,2]
[404483568,1770197583748,978.17665717,0.00013821,2]
[404483569,1770197586980,466.85826707,0.00013699,2]
[404483570,1770197588086,500.0,0.00013273,2]
[404483571,1770197588129,500.0,0.00013821,2]
[404483572,1770197595654,4079.78238934,0.00014,2]
[404483573,1770197596270,-225.37,0.000142,2]
[404483574,1770197597656,500.0,0.00013699,2]
[404483576,1770197612374,151.0,0.0003985,90]
[404483577,1770197612683,151.0,0.0003985,90]
[404483578,1770197612989,151.0,0.0003985,90]
[404483579,1770197613292,284.658522,0.0003985,90]
[404483580,1770197644432,319.27883337,0.00013699,2]
[404483581,1770197644455,181.78315416,0.00013699,2]
[404483582,1770197655944,1540.322994,0.0003989,120]
[404483583,1770197656244,1540.322994,0.0003989,120]
[404483584,1770197656613,1540.322994,0.0003989,120]
[404483585,1770197656836,1540.322994,0.0003989,120]
[404483586,1770197657138,1540.322994,0.0003989,120]
[404483587,1770197657418,1540.322994,0.0003989,120]
[404483588,1770197657722,1540.322994,0.0003989,120]
[404483589,1770197658012,1540.322994,0.0003989,120]
[404483590,1770197658307,1540.322994,0.0003989,120]
[404483591,1770197658915,1540.322994,0.0003989,120]
[404483592,1770197659230,1540.322994,0.0003989,120]
[404483593,1770197659532,1540.322994,0.0003989,120]
[404483594,1770197659835,1540.322994,0.0003989,120]
[404483595,1770197660147,1540.322994,0.0003989,120]
[404483596,1770197660448,1540.322994,0.0003989,120]
[404483597,1770197660743,1540.322994,0.0003989,120]
[404483598,1770197661038,1540.322994,0.0003989,120]
[404483599,1770197661324,1540.322994,0.0003989,120]
[404483600,1770197661722,1540.322994,0.0003989,120]
[404483601,1770197662059,1540.323001,0.0003989,120]
[404483602,1770197688199,249.74746,0.0003989,120]
[404483603,1770197688786,249.74746,0.0003989,120]
[404483604,1770197689086,249.74746,0.0003989,120]
[404483605,1770197689377,249.74746,0.0003989,120]
[404483606,1770197689701,249.74746,0.0003989,120]
[404483607,1770197689992,249.74746,0.0003989,120]
[404483608,1770197690296,249.74746,0.0003989,120]
[404483609,1770197690578,249.74746,0.0003989,120]
[404483610,1770197690868,249.74746,0.0003989,120]
[404483611,1770197691165,249.74746,0.0003989,120]
[404483612,1770197691452,249.74746,0.0003989,120]
[404483613,1770197691775,249.74746,0.0003989,120]
[404483614,1770197692087,249.74746,0.0003989,120]
[404483615,1770197692388,249.74746,0.0003989,120]
[404483616,1770197692685,249.74746,0.0003989,120]
[404483617,1770197692996,249.74746,0.0003989,120]
[404483618,1770197693323,249.74746,0.0003989,120]
[404483619,1770197693617,249.74746,0.0003989,120]
[404483620,1770197693919,249.74746,0.0003989,120]
[404483621,1770197694468,249.747467,0.0003989,120]
[404483622,1770197696096,2163.963345,0.0003989,120]
[404483623,1770197696403,2163.963345,0.0003989,120]
[404483624,1770197696684,2163.963345,0.0003989,120]
[404483625,1770197697059,2163.963345,0.0003989,120]
[404483626,1770197697564,2163.963345,0.0003989,120]
[404483627,1770197697855,2163.963345,0.0003989,120]
[404483628,1770197698173,2163.963345,0.0003989,120]
[404483629,1770197698460,2163.963345,0.0003989,120]
[404483630,1770197698751,2163.963345,0.0003989,120]
[404483631,1770197699075,2163.963345,0.0003989,120]
[404483632,1770197699371,2163.963345,0.0003989,120]
[404483633,1770197699681,2163.963345,0.0003989,120]
[404483634,1770197700089,2163.963345,0.0003989,120]
[404483635,1770197700431,2163.963345,0.0003989,120]
[404483636,1770197700780,2163.963345,0.0003989,120]
[404483637,1770197701403,2163.963345,0.0003989,120]
[404483638,1770197701779,2163.963345,0.0003989,120]
[404483639,1770197702162,2163.963345,0.0003989,120]
[404483640,1770197702471,2163.963345,0.0003989,120]
[404483641,1770197702911,2163.963349,0.0003989,120]
[404483642,1770197717824,502.84829097,0.00013699,2]
[404483643,1770197766054,151.0,0.0003989,28]
[404483644,1770197766322,151.0,0.0003989,28]
[404483645,1770197766622,151.0,0.0003989,28]
[404483646,1770197766905,151.0,0.0003989,28]
[404483647,1770197770270,151.0,0.0003989,28]
[404483648,1770197770575,151.0,0.0003989,28]
[404483649,1770197770861,151.0,0.0003989,28]
[404483650,1770197771159,151.0,0.0003989,28]
[404483651,1770197771473,151.0,0.0003989,28]
[404483652,1770197771792,151.0,0.0003989,28]
[404483653,1770197772102,151.0,0.0003989,28]
[404483654,1770197772398,151.0,0.0003989,28]
[404483655,1770197772805,151.0,0.0003989,28]
[404483656,1770197773150,151.0,0.0003989,28]
[404483657,1770197773460,267.782052,0.0003989,28]
[404483658,1770197825729,284.441459,0.0003989,120]
[404483659,1770197895453,241.54467644,0.00013699,2]
[404483660,1770197895740,300.0,0.00013673,2]
[404483661,1770197896719,500.79097954,0.00013699,2]
[404483662,1770197897647,379.14062448,0.00013699,2]
[404483663,1770197950058,500.0,0.00013699,2]
[404483664,1770197952431,487.22308489,0.00013699,2]
[404483665,1770197959167,500.0,0.00013699,2]
[404483666,1770197961056,500.91930438,0.00013699,2]
[404483667,1770198010812,-409.58732534,0.00014247,2]
[404483668,1770198010835,-477.59670468,0.00014337,2]
[404483669,1770198013691,-507.89,0.00014337,2]
[404483670,1770198018147,-214.51329532,0.00014337,2]
[404483671,1770198018174,-1197.41233125,0.00014338,2]
[404483672,1770198019772,-1590.19435344,0.00014338,2]
[404483673,1770198021854,-496.09880144,0.00014338,2]
[404483674,1770198023444,-720.0,0.00014338,2]
[404483675,1770198026708,-2739.0356266,0.00014338,2]
[404483676,1770198040714,-527.08830818,0.00014195,2]
[404483677,1770198042865,-472.91169182,0.00014195,2]
[404483678,1770198044876,-1128.7190876,0.00014195,2]
[404483679,1770198046351,-179.44107587,0.00014195,2]
[404483680,1770198048516,-368.11043381,0.00014195,2]
[404483681,1770198048723,2739.0356266,0.00014,2]
[404483682,1770198050589,-523.095474,0.00014195,2]
[404483683,1770198052121,-160.1222725,0.00014195,2]
[404483684,1770198054119,-219.10013129,0.00014195,2]
[404483685,1770198055817,-176.24550484,0.00014195,2]
[404483686,1770198057390,-1000.0,0.00014195,2]
[404483687,1770198064053,250.08643803,0.00013699,2]
[404483688,1770198064497,177.13803834,0.00013699,2]
[404483689,1770198067026,500.0,0.00013699,2]
[404483690,1770198072803,500.0,0.00013699,2]
[404483691,1770198081948,500.0,0.00013699,2]
[404483692,1770198106145,1923.15766073,0.00014,2]
[404483693,1770198123226,179.78077384,0.00013699,2]
[404483694,1770198171664,458.0,0.00013,14]
[404483695,1770198189805,500.0,0.00013699,2]
[404483696,1770198197527,487.1329653,0.00013907,2]
[404483697,1770198199596,242.19560529,0.00013699,2]
[404483698,1770198244207,160.92313231,0.00013699,2]
[404483699,1770198246809,373.42626047,0.00013699,2]
[404483700,1770198247146,368.11043381,0.00013699,2]
[404483701,1770198303673,534.1142925,0.00013699,2]
[404483702,1770198303712,639.84389898,0.00013699,2]
[404483703,1770198323147,5325.9527164,0.00013717,2]
[404483707,1770198424072,500.0,0.00013273,2]
[404483708,1770198424106,214.10871006,0.00013821,2]
[404483724,1770198631764,-166.66666666,0.00014027,2]
[404483726,1770198631777,-708.385334,0.000141,2]
[404483728,1770198631787,-150.0,0.00014127,2]
[404483730,1770198631798,-541.02258978,0.00014154,2]
[404483732,1770198631809,-629.78767873,0.00014247,2]
[404483734,1770198631820,-1612.90065297,0.00014338,2]
[404483736,1770198631831,-191.769029,0.00014648,2]